bitfinex-derivatives/quotes_SOLF0:USTF0_20220102
["timestamp","ask_amount","ask_price","bid_price","bid_amount"]
[1641157397934,12.15568596,175.23,175.17,3.0]
[1641157398433,12.15568596,175.23,175.15,17.26850429]
[1641157398434,12.15568596,175.23,175.16,3.0]
[1641157398633,12.15568596,175.23,175.15,20.26850429]
[1641157398833,12.15568596,175.23,175.15,15.12450429]
[1641157399235,27.66479,175.24,175.17,12.12450429]
[1641157400036,27.66479,175.24,175.18,12.12450429]
[1641157400735,27.66479,175.24,175.17,42.14010429]
[1641157400935,31.89779,175.24,175.17,42.14010429]
[1641157402340,4.233,175.24,175.17,42.14010429]
[1641157402540,32.32675792,175.29,175.19,3.0]
[1641157402739,32.32675792,175.29,175.22,3.0]
[1641157403138,29.6841,175.38,175.23,3.0]
[1641157403139,32.32675792,175.33,175.23,3.0]
[1641157403338,32.32675792,175.33,175.24,32.2435]
[1641157403639,32.32675792,175.33,175.24,29.2435]
[1641157403839,32.32675792,175.33,175.25,27.66479]
[1641157404039,32.32675792,175.33,175.28,3.0]
[1641157404841,105.83902688,175.38,175.28,8.742]
[1641157404842,42.28687784,175.37,175.28,8.742]
[1641157405841,42.28687784,175.37,175.29,27.66479]
[1641157406443,42.28687784,175.37,175.26,3.0]
[1641157406642,48.56187784,175.37,175.25,27.66479]
[1641157406842,48.56187784,175.37,175.26,3.0]
[1641157407042,48.56187784,175.37,175.25,30.66479]
[1641157407242,48.56187784,175.37,175.26,3.0]
[1641157407545,48.56187784,175.37,175.27,3.0]
[1641157407744,32.32675792,175.36,175.27,3.0]
[1641157408146,32.32675792,175.36,175.26,3.0]
[1641157408344,32.32675792,175.36,175.27,3.0]
[1641157408545,32.32675792,175.36,175.26,3.0]
[1641157409244,48.56187784,175.37,175.26,3.0]
[1641157410245,48.56187784,175.37,175.27,3.0]
[1641157411546,48.56187784,175.37,175.28,1.32673588]
[1641157411745,2.72263486,175.36,175.28,1.32673588]
[1641157412247,45.0095127,175.36,175.27,1.32673588]
[1641157413146,75.1756127,175.36,175.27,1.32673588]
[1641157413647,12.68275478,175.35,175.26,1.32673588]
[1641157413848,12.68275478,175.35,175.26,28.99152588]
[1641157414451,12.68275478,175.35,175.27,1.32673588]
[1641157417156,45.0095127,175.35,175.27,1.32673588]
[1641157417755,72.6743027,175.35,175.27,1.32673588]
[1641157418857,45.0095127,175.34,175.25,1.32673588]
[1641157419557,12.68275478,175.34,175.25,1.32673588]
[1641157420159,45.0095127,175.34,175.25,1.32673588]
[1641157422263,12.68275478,175.34,175.25,1.32673588]
[1641157423767,45.0095127,175.34,175.25,1.32673588]
[1641157424369,32.32675792,175.33,175.25,1.32673588]
[1641157424569,38.53675792,175.33,175.25,1.32673588]
[1641157425271,2.72263486,175.32,175.25,1.32673588]
[1641157433080,12.1498925,175.31,175.25,1.32673588]
[1641157433981,39.8146825,175.31,175.25,1.32673588]
[1641157434181,42.53731736,175.31,175.25,1.32673588]
[1641157434681,12.1498925,175.29,175.22,1.32673588]
[1641157434881,16.4398925,175.29,175.22,1.32673588]
[1641157435383,2.72263486,175.28,175.22,1.32673588]
[1641157437885,2.72263486,175.28,175.22,19.71444147]
[1641157438286,8.04263486,175.28,175.22,19.71444147]
[1641157438487,5.32,175.28,175.22,19.71444147]
[1641157439492,12.1498925,175.3,175.22,19.71444147]
[1641157439696,14.87252736,175.27,175.22,6.33473588]
[1641157439893,14.87252736,175.27,175.24,3.0]
[1641157440093,14.87252736,175.27,175.24,30.66479]
[1641157440292,5.87892736,175.27,175.24,27.66479]
[1641157440493,5.87892736,175.27,175.25,3.0]
[1641157440692,42.28968743,175.31,175.24,30.66479]
[1641157440894,32.32675792,175.31,175.24,27.66479]
[1641157441092,72.50658743,175.36,175.24,27.66479]
[1641157441297,72.50658743,175.36,175.25,29.7607]
[1641157442094,9.96292951,175.35,175.25,29.7607]
[1641157442794,42.28968743,175.35,175.25,29.7607]
[1641157442993,49.15168743,175.35,175.25,29.7607]
[1641157443996,16.82492951,175.35,175.25,29.7607]
[1641157444195,16.82492951,175.35,175.25,57.42549]
[1641157446597,16.82492951,175.35,175.25,29.7607]
[1641157447897,16.82492951,175.35,175.25,57.42549]
[1641157449799,16.82492951,175.35,175.25,29.7607]
[1641157450600,16.82492951,175.35,175.25,57.42549]
[1641157455605,16.82492951,175.35,175.28,4.04969348]
[1641157456104,49.15168743,175.35,175.27,4.04969348]
[1641157457305,16.82492951,175.35,175.27,4.04969348]
[1641157458007,49.15168743,175.35,175.25,57.42549]
[1641157458506,49.15168743,175.35,175.27,4.04978582]
[1641157459408,49.15168743,175.35,175.25,57.42549]
[1641157460513,16.82492951,175.35,175.28,4.04964046]
[1641157461112,16.82492951,175.35,175.29,4.04951177]
[1641157461512,16.82492951,175.35,175.25,57.42549]
[1641157462211,16.82492951,175.35,175.29,4.04949337]
[1641157463317,16.82492951,175.35,175.25,57.42549]
[1641157464115,16.82492951,175.35,175.29,4.04946921]
[1641157464717,16.82492951,175.35,175.25,57.42549]
[1641157465516,16.82492951,175.35,175.29,4.04946569]
[1641157466220,16.82492951,175.35,175.25,57.42549]
[1641157466824,16.82492951,175.35,175.29,4.04942395]
[1641157468126,16.82492951,175.35,175.26,6.45319639]
[1641157468326,16.82492951,175.35,175.3,4.04928504]
[1641157469026,16.82492951,175.35,175.26,6.45319639]
[1641157469726,16.82492951,175.35,175.3,4.04925271]
[1641157470528,16.82492951,175.35,175.26,6.45319639]
[1641157470725,12.14776075,175.34,175.26,18.60095714]
[1641157471128,16.82492951,175.35,175.26,18.60095714]
[1641157471326,16.82492951,175.35,175.3,4.04925648]
[1641157471830,12.14833787,175.33,175.29,4.04944596]
[1641157472528,12.14833787,175.33,175.25,39.81255075]
[1641157472732,15.14833787,175.33,175.25,12.14776075]
[1641157472930,5.70434386,175.28,175.21,32.32675792]
[1641157473130,3.0,175.27,175.21,32.32675792]
[1641157473329,33.36994746,175.26,175.21,32.32675792]
[1641157473732,36.36994746,175.26,175.21,32.32675792]
[1641157473929,36.36994746,175.26,175.24,4.05026916]
[1641157474131,33.36994746,175.26,175.24,4.05026916]
[1641157474330,33.36994746,175.26,175.24,6.916e-05]
[1641157474532,36.36994746,175.26,175.24,6.916e-05]
[1641157475535,36.36994746,175.26,175.16,32.32675792]
[1641157475734,45.28968743,175.25,175.11,59.45569]
[1641157475935,30.3881,175.24,175.11,59.45569]
[1641157476135,37.0521,175.24,175.11,59.45569]
[1641157476736,9.96292951,175.23,175.12,6.32686337]
[1641157477435,9.96292951,175.23,175.14,27.66479]
[1641157480336,9.96292951,175.23,175.14,33.32979]
[1641157481134,2.7676533,175.22,175.15,1.28398499]
[1641157481736,37.62771951,175.23,175.15,1.28398499]
[1641157482835,2.76766946,175.22,175.11,31.7909]
[1641157483336,12.85002495,175.23,175.12,7.40909274]
[1641157483536,12.85002495,175.23,175.13,27.66479]
[1641157484034,30.3881,175.24,175.13,27.66479]
[1641157485137,30.3881,175.24,175.11,31.7909]
[1641157485538,30.3881,175.24,175.13,27.66479]
[1641157485739,30.3881,175.24,175.13,33.70879]
[1641157486242,12.85022168,175.23,175.14,1.28396228]
[1641157487643,27.66479,175.22,175.14,1.28396228]
[1641157488641,27.66479,175.22,175.13,27.66479]
[1641157488642,2.76790311,175.21,175.13,27.66479]
[1641157489243,2.76790311,175.21,175.14,1.2839588]
[1641157489846,2.76790311,175.21,175.13,27.66479]
[1641157490545,2.76790311,175.21,175.11,59.45569]
[1641157490546,2.76790311,175.21,175.14,1.28395663]
[1641157491548,12.85052058,175.23,175.12,7.40913021]
[1641157491750,27.66479,175.22,175.12,7.40913021]
[1641157492553,12.85052058,175.21,175.12,7.40913021]
[1641157493050,12.85052058,175.21,175.12,1.28395398]
[1641157493952,12.85052058,175.21,175.12,7.40923449]
[1641157494753,2.76790311,175.21,175.12,7.40923449]
[1641157496153,27.66479,175.19,175.12,7.40923449]
[1641157496354,33.32879,175.19,175.12,7.40923449]
[1641157496853,33.32879,175.19,175.12,1.28395398]
[1641157497054,2.76790311,175.18,175.12,1.28395398]
[1641157497655,33.32879,175.19,175.12,1.28395398]
[1641157498857,2.76852607,175.18,175.12,1.28395398]
[1641157499557,33.32879,175.19,175.12,1.28395398]
[1641157499759,5.664,175.19,175.12,1.28395398]
[1641157500162,29.9463,175.2,175.12,1.28395398]
[1641157500360,2.76855503,175.18,175.12,1.28395398]
[1641157500560,27.66479,175.17,175.12,1.28395398]
[1641157501563,27.66479,175.17,175.11,31.7909]
[1641157501762,2.7686341,175.16,175.07,27.66479]
[1641157501961,34.5760341,175.16,175.08,31.5549]
[1641157502362,2.7686341,175.15,175.09,1.28381733]
[1641157503161,2.7686341,175.15,175.08,31.5549]
[1641157503363,14.92867783,175.15,175.08,31.5549]
[1641157504261,14.92867783,175.15,175.09,1.28381628]
[1641157504662,14.92867783,175.15,175.08,31.5549]
[1641157505767,14.92867783,175.15,175.09,1.28381873]
[1641157506368,12.16004373,175.14,175.08,31.5549]
[1641157507168,14.92901331,175.15,175.09,1.28380285]
[1641157507668,14.92901331,175.15,175.08,31.5549]
[1641157508470,14.92901331,175.15,175.09,1.28380617]
[1641157509370,14.92901331,175.15,175.08,31.5549]
[1641157509774,14.92901331,175.15,175.09,1.28380902]
[1641157510572,31.8074,175.16,175.08,31.5549]
[1641157511174,59.47219,175.16,175.08,31.5549]
[1641157511572,14.92975087,175.15,175.09,1.28380981]
[1641157512173,59.47219,175.16,175.08,31.5549]
[1641157512374,27.66479,175.16,175.1,12.16004373]
[1641157513475,21.18070916,175.16,175.1,12.16004373]
[1641157514078,21.18070916,175.16,175.12,12.16004373]
[1641157515876,21.18070916,175.16,175.12,16.97004373]
[1641157516277,21.18070916,175.16,175.13,1.28102987]
[1641157517177,21.18070916,175.16,175.12,12.16004373]
[1641157517976,21.18070916,175.16,175.11,12.16004373]
[1641157518676,21.18070916,175.16,175.11,13.4410736]
[1641157519276,21.18070916,175.16,175.12,12.16004373]
[1641157519478,12.15873952,175.19,175.12,12.16004373]
[1641157520177,12.15873952,175.19,175.11,12.16004373]
[1641157520579,27.66479,175.17,175.11,12.16004373]
[1641157520778,27.66479,175.17,175.12,12.16004373]
[1641157521583,12.15873952,175.2,175.12,12.16004373]
[1641157522186,14.92752778,175.2,175.12,12.16004373]
[1641157522588,27.66479,175.17,175.12,12.16004373]
[1641157523088,27.66479,175.17,175.1,1.28102987]
[1641157523089,27.66479,175.17,175.1,12.16004373]
[1641157523888,2.76878826,175.16,175.09,19.56663573]
[1641157525190,2.76878826,175.16,175.1,12.16004373]
[1641157531395,2.76878826,175.16,175.09,19.56663573]
[1641157532796,14.92752778,175.16,175.09,1.28102987]
[1641157534797,12.15873952,175.15,175.11,4.05331692]
[1641157534998,16.93273952,175.15,175.11,4.05331692]
[1641157535399,2.76878826,175.14,175.11,4.05331692]
[1641157538405,70.66462952,175.17,175.08,37.09214679]
[1641157539104,70.66462952,175.17,175.09,5.33434679]
[1641157539305,2.75877199,175.16,175.09,5.33434679]
[1641157540508,2.75877199,175.16,175.1,4.05331692]
[1641157542912,2.75877199,175.16,175.12,4.05331692]
[1641157543915,14.91751151,175.16,175.12,4.05331692]
[1641157545114,2.75877199,175.16,175.13,4.05331692]
[1641157546516,14.91751151,175.16,175.12,4.05331692]
[1641157546718,20.73251151,175.16,175.12,4.05331692]
[1641157546920,14.91751151,175.16,175.12,4.05331692]
[1641157547119,32.32675792,175.2,175.13,3.0]
[1641157547320,32.32675792,175.2,175.15,3.0]
[1641157547522,30.57375792,175.2,175.17,3.0]
[1641157547719,48.49013688,175.25,175.19,3.0]
[1641157547919,48.49013688,175.25,175.2,3.0]
[1641157548697,48.49013688,175.33,175.23,3.0]
[1641157548823,48.49013688,175.33,175.23,6.771]
[1641157550627,48.49013688,175.33,175.22,27.66479]
[1641157550825,54.85513688,175.33,175.22,27.66479]
[1641157551027,54.85513688,175.33,175.28,4.05034855]
[1641157551226,15.44007938,175.33,175.28,4.05034855]
[1641157552326,9.07507938,175.33,175.28,4.05034855]
[1641157552528,30.66479,175.37,175.28,4.05034855]
[1641157552728,30.66479,175.37,175.29,4.05034855]
[1641157553428,9.07464623,175.36,175.29,4.05034855]
[1641157553627,15.65764623,175.36,175.29,4.05034855]
[1641157554628,43.32243623,175.36,175.29,4.05034855]
[1641157555428,9.07464623,175.35,175.28,4.05034855]
[1641157556229,3.0,175.34,175.28,4.05034855]
[1641157556628,30.66479,175.34,175.28,4.05034855]
[1641157557331,27.66479,175.34,175.28,4.05034855]
[1641157557630,27.66479,175.34,175.23,31.0193]
[1641157557631,9.07464623,175.33,175.26,4.05034855]
[1641157558334,9.07464623,175.33,175.27,4.05034855]
[1641157560738,5.70190444,175.36,175.28,4.05034855]
[1641157561139,14.77655067,175.36,175.28,4.05034855]
[1641157562740,5.70190444,175.36,175.28,4.05034855]
[1641157563343,14.77655067,175.36,175.28,4.05034855]
[1641157563940,14.77655067,175.36,175.29,4.05034855]
[1641157564640,14.77655067,175.36,175.28,4.05034855]
[1641157564842,19.78955067,175.36,175.28,4.05034855]
[1641157565642,10.71490444,175.36,175.28,4.05034855]
[1641157565845,10.71490444,175.36,175.25,27.66479]
[1641157566643,27.66479,175.37,175.25,27.66479]
[1641157567946,3.99197387,175.3,175.26,7.12611625]
[1641157568752,3.99197387,175.28,175.25,27.66479]
[1641157570346,3.99197387,175.29,175.25,27.66479]
[1641157571850,3.99197387,175.28,175.25,27.66479]
[1641157573252,3.99197387,175.29,175.25,27.66479]
[1641157574258,3.99197387,175.29,175.21,32.8361]
[1641157574657,6.533,175.31,175.22,7.12418725]
[1641157575058,6.533,175.31,175.24,27.66479]
[1641157575259,4.04899456,175.28,175.24,27.66479]
[1641157575459,4.04899456,175.28,175.22,7.12418725]
[1641157576069,4.04877882,175.29,175.22,7.12418725]
[1641157577064,4.04877882,175.29,175.24,27.66479]
[1641157577263,4.943,175.33,175.24,27.66479]
[1641157578067,4.04895732,175.29,175.25,19.27105921]
[1641157578271,8.85795732,175.29,175.25,19.27105921]
[1641157578972,4.809,175.29,175.25,19.27105921]
[1641157579772,8.85804299,175.29,175.25,19.27105921]
[1641157580272,4.809,175.29,175.25,19.27105921]
[1641157580974,8.85796322,175.29,175.25,12.14687196]
[1641157581474,4.809,175.29,175.25,12.14687196]
[1641157581672,4.809,175.29,175.25,39.81166196]
[1641157582273,4.809,175.29,175.25,12.14687196]
[1641157582971,4.04891276,175.3,175.25,12.14687196]
[1641157583373,4.943,175.33,175.25,12.14687196]
[1641157583573,12.14673828,175.34,175.25,12.14687196]
[1641157583873,12.14673828,175.34,175.25,39.81166196]
[1641157584675,12.14673828,175.33,175.29,4.04885424]
[1641157584974,17.47673828,175.33,175.29,4.04885424]
[1641157588078,2.43252707,175.32,175.29,4.04885424]
[1641157591786,2.43252707,175.32,175.28,4.04885424]
[1641157594387,14.57926535,175.32,175.27,4.04885424]
[1641157595485,12.14673828,175.31,175.27,4.04885424]
[1641157598191,14.57926535,175.32,175.25,4.04885424]
[1641157599089,12.14673828,175.32,175.25,4.04885424]
[1641157599791,4.04377578,175.28,175.25,4.04885424]
[1641157600490,4.04377578,175.28,175.26,4.04885424]
[1641157601392,4.04377578,175.29,175.26,4.04885424]
[1641157603102,4.04377578,175.28,175.26,4.04885424]
[1641157604704,2.43252707,175.3,175.27,4.04885424]
[1641157605604,2.43252707,175.3,175.26,4.04885424]
[1641157605605,14.57926535,175.3,175.26,4.04885424]
[1641157607506,2.43252707,175.3,175.27,4.04885424]
[1641157608407,2.43252707,175.3,175.28,4.04885424]
[1641157609406,2.43252707,175.3,175.27,4.04885424]
[1641157610405,7.56252707,175.3,175.27,4.04885424]
[1641157610607,3.0,175.28,175.27,4.04885424]
[1641157610808,5.13,175.3,175.27,4.04885424]
[1641157611308,5.13,175.3,175.27,2.45795424]
[1641157611507,14.57926535,175.29,175.25,2.45795424]
[1641157614117,14.57926535,175.29,175.21,20.73599087]
[1641157614315,44.00046535,175.29,175.21,20.73599087]
[1641157615118,2.43252707,175.28,175.21,20.73599087]
[1641157615816,2.43252707,175.28,175.21,13.76300683]
[1641157616016,14.57926535,175.28,175.21,1.61613487]
[1641157617519,2.43252707,175.28,175.21,12.14687196]
[1641157619625,2.43252707,175.29,175.21,20.77417574]
[1641157620627,5.43252707,175.29,175.21,20.77417574]
[1641157621027,2.43252707,175.28,175.21,20.77417574]
[1641157621627,3.0,175.28,175.21,20.77417574]
[1641157622228,2.43252707,175.27,175.21,20.77417574]
[1641157622527,3.0,175.25,175.21,20.77417574]
[1641157622929,3.0,175.25,175.22,12.14687196]
[1641157624130,3.0,175.25,175.21,12.14687196]
[1641157624731,3.0,175.27,175.21,12.14687196]
[1641157624934,3.0,175.27,175.21,20.77417574]
[1641157625534,3.0,175.27,175.22,12.14687196]
[1641157626733,3.0,175.27,175.21,20.77417574]
[1641157628134,2.4485097,175.26,175.21,20.77417574]
[1641157628337,8.7845097,175.26,175.21,20.77417574]
[1641157628936,6.336,175.26,175.21,20.77417574]
[1641157630742,3.0,175.27,175.21,20.77417574]
[1641157631741,2.44843994,175.26,175.21,20.77417574]
[1641157633246,3.0,175.27,175.22,12.14687196]
[1641157634049,2.4487187,175.26,175.21,1.61613487]
[1641157634749,2.4487187,175.27,175.21,1.61613487]
[1641157638756,2.4487187,175.27,175.2,20.73611333]
[1641157641756,6.9787187,175.27,175.2,20.73611333]
[1641157642256,2.4487187,175.26,175.2,20.73611333]
[1641157642658,2.4487187,175.26,175.2,48.40090333]
[1641157643560,33.8774,175.27,175.21,1.61613487]
[1641157644559,2.44885981,175.26,175.21,1.61613487]
[1641157645160,5.283,175.26,175.21,20.73600833]
[1641157645759,5.283,175.26,175.21,13.76300683]
[1641157645961,2.4488599,175.25,175.2,1.61613487]
[1641157646763,2.44888387,175.26,175.2,1.61613487]
[1641157647362,41.49413828,175.27,175.2,1.61613487]
[1641157648362,2.4489159,175.26,175.2,1.61613487]
[1641157648765,41.49413828,175.27,175.2,1.61613487]
[1641157649566,14.59576026,175.26,175.2,1.61613487]
[1641157650365,29.3474,175.27,175.2,1.61613487]
[1641157650567,41.50069473,175.27,175.2,1.61613487]
[1641157651065,2.44893449,175.26,175.2,1.61613487]
[1641157651568,41.50069473,175.27,175.2,1.61613487]
[1641157653270,2.44892882,175.26,175.2,1.61613487]
[1641157653871,29.3474,175.27,175.2,1.61613487]
[1641157654673,2.44893493,175.26,175.2,1.61613487]
[1641157655274,32.3474,175.27,175.2,1.61613487]
[1641157656074,29.3474,175.27,175.2,1.61613487]
[1641157656275,2.44910441,175.26,175.2,1.61613487]
[1641157656774,41.50115881,175.27,175.2,1.61613487]
[1641157657374,2.44910293,175.26,175.2,1.61613487]
[1641157658175,41.50115881,175.27,175.2,1.61613487]
[1641157658376,41.50115881,175.27,175.2,8.15913487]
[1641157659680,29.3474,175.27,175.2,8.15913487]
[1641157659876,2.44896864,175.26,175.21,1.61613487]
[1641157660277,41.50084507,175.27,175.21,1.61613487]
[1641157660878,2.44898823,175.26,175.21,1.61613487]
[1641157662079,41.50084507,175.27,175.21,1.61613487]
[1641157663179,2.4489766,175.26,175.21,1.61613487]
[1641157663778,41.50084507,175.27,175.21,1.61613487]
[1641157664278,2.44897367,175.26,175.21,1.61613487]
[1641157665081,41.50084507,175.27,175.21,1.61613487]
[1641157665683,2.4489804,175.26,175.2,1.61613487]
[1641157666180,41.50084507,175.27,175.2,1.61613487]
[1641157666880,2.4490187,175.26,175.2,1.61613487]
[1641157667482,41.50084507,175.27,175.2,1.61613487]
[1641157668282,29.3474,175.27,175.2,1.61613487]
[1641157668483,2.44888122,175.26,175.2,1.61613487]
[1641157668883,2.44888122,175.26,175.2,29.28092487]
[1641157669283,41.50029712,175.27,175.2,29.28092487]
[1641157669485,41.50029712,175.27,175.2,35.63992487]
[1641157670086,2.44867904,175.26,175.21,1.61613487]
[1641157671186,29.3474,175.27,175.21,1.61613487]
[1641157672087,2.44867965,175.26,175.24,4.05086679]
[1641157672489,5.70385581,175.3,175.24,4.05086679]
[1641157673191,32.39881676,175.32,175.24,4.05086679]
[1641157673390,2.4486024,175.29,175.27,27.66479]
[1641157674392,2.4486024,175.34,175.28,1.61613487]
[1641157674590,2.4486024,175.34,175.28,7.07213487]
[1641157675491,2.4486024,175.34,175.29,5.66578155]
[1641157675994,2.4486024,175.34,175.3,4.04964668]
[1641157676999,5.702067,175.35,175.3,4.04964668]
[1641157677196,5.702067,175.35,175.27,29.3001]
[1641157677397,5.702067,175.35,175.27,56.96489]
[1641157683703,2.42961962,175.34,175.27,56.96489]
[1641157684502,5.702067,175.35,175.27,56.96489]
[1641157684703,5.702067,175.35,175.27,29.3001]
[1641157685506,5.702067,175.35,175.27,56.96489]
[1641157686609,14.50695999,175.34,175.3,4.04964668]
[1641157687209,14.50695999,175.34,175.29,4.04964668]
[1641157688111,4.04957786,175.3,175.29,4.04964668]
[1641157688613,12.05970797,175.33,175.29,4.04964668]
[1641157689314,12.05970797,175.32,175.28,5.65196361]
[1641157689812,2.44725202,175.34,175.28,5.65196361]
[1641157690512,12.1498482,175.32,175.28,5.65196361]
[1641157691314,2.44725202,175.34,175.28,5.65196361]
[1641157692114,12.14952101,175.33,175.29,4.04964668]
[1641157693017,12.14952101,175.32,175.28,5.65196361]
[1641157693719,2.44725202,175.34,175.28,4.04964668]
[1641157694518,12.14968163,175.33,175.28,5.65196361]
[1641157695119,16.86668163,175.33,175.28,5.65196361]
[1641157695720,2.44725202,175.32,175.28,5.65196361]
[1641157695918,14.59693365,175.32,175.28,5.65196361]
[1641157696719,2.44725202,175.32,175.27,4.04964668]
[1641157698021,2.44725202,175.32,175.26,33.31675361]
[1641157698422,2.44725202,175.32,175.27,5.65196361]
[1641157698620,12.14968163,175.33,175.27,5.65196361]
[1641157699323,2.44725202,175.34,175.28,4.04964668]
[1641157703633,2.44725202,175.34,175.28,5.65196361]
[1641157705736,2.44725202,175.34,175.29,4.04964668]
[1641157706438,17.85174863,175.35,175.29,4.04964668]
[1641157707040,14.59680775,175.34,175.3,4.04964668]
[1641157707937,14.92737297,175.35,175.3,4.04964668]
[1641157708539,14.59551968,175.34,175.3,5.65196361]
[1641157709238,2.44713419,175.34,175.3,5.65196361]
[1641157709440,20.93837297,175.35,175.3,5.65196361]
[1641157709840,14.59555434,175.34,175.3,5.65196361]
[1641157710442,20.93837297,175.35,175.3,5.65196361]
[1641157710643,14.92737297,175.35,175.3,5.65196361]
[1641157711344,4.04039846,175.32,175.29,33.82074668]
[1641157711543,4.04039846,175.32,175.29,4.04964668]
[1641157711844,5.702067,175.35,175.29,4.04964668]
[1641157712543,43.33479537,175.36,175.29,4.04964668]
[1641157712544,4.04038498,175.32,175.29,4.04964668]
[1641157713047,2.44154155,175.35,175.29,4.04964668]
[1641157713848,4.04027007,175.32,175.29,4.04964668]
[1641157714447,2.44154155,175.35,175.29,4.04964668]
[1641157715048,4.04030085,175.32,175.29,4.04964668]
[1641157715948,2.44154155,175.35,175.29,4.04964668]
[1641157716552,4.04030549,175.32,175.29,4.04964668]
[1641157717352,2.44154155,175.35,175.29,4.04964668]
[1641157718056,4.040221,175.32,175.29,4.04964668]
[1641157718657,7.58054155,175.35,175.28,5.64838227]
[1641157719458,10.58054155,175.35,175.28,5.64838227]
[1641157719659,4.04040801,175.32,175.28,5.64838227]
[1641157720062,2.44154155,175.34,175.28,4.04964668]
[1641157720962,4.04041543,175.32,175.28,5.64838227]
[1641157721464,2.44154155,175.34,175.28,4.04964668]
[1641157722071,4.04042938,175.32,175.28,4.04964668]
[1641157722867,2.44154155,175.34,175.28,4.04964668]
[1641157723568,4.04042955,175.32,175.28,5.64838227]
[1641157724271,14.56273692,175.35,175.28,5.64838227]
[1641157724871,4.04041984,175.32,175.28,4.04964668]
[1641157725273,4.04041984,175.32,175.3,27.66479]
[1641157725672,4.04004369,175.33,175.3,31.71443668]
[1641157726674,12.12119537,175.37,175.32,4.04964668]
[1641157726876,12.12119537,175.36,175.32,9.13064668]
[1641157727875,14.56783817,175.38,175.32,5.081]
[1641157728978,14.56783817,175.38,175.31,35.21134668]
[1641157732181,19.74983817,175.38,175.31,35.21134668]
[1641157732782,2.4466428,175.37,175.31,35.21134668]
[1641157733682,14.56783817,175.37,175.31,31.1617]
[1641157736291,12.12119537,175.36,175.31,31.1617]
[1641157739595,14.56783817,175.37,175.31,31.1617]
[1641157741396,12.12119537,175.35,175.31,35.21134668]
[1641157741996,2.4466428,175.37,175.31,35.21134668]
[1641157742897,12.14765485,175.35,175.31,35.21134668]
[1641157743300,2.4466428,175.37,175.31,35.21134668]
[1641157743600,4.04922389,175.32,175.31,35.21134668]
[1641157743800,4.04922389,175.32,175.31,4.04964668]
[1641157744200,2.4466428,175.37,175.31,4.04964668]
[1641157744402,12.13939249,175.36,175.31,5.6509041]
[1641157745204,4.04646301,175.32,175.31,4.04964668]
[1641157745907,14.58603529,175.36,175.31,4.04964668]
[1641157746808,4.04645751,175.32,175.31,4.04964668]
[1641157747609,14.58603529,175.36,175.31,4.04964668]
[1641157747811,3.0,175.34,175.31,4.04964668]
[1641157748108,14.58603529,175.36,175.31,4.04964668]
[1641157748308,3.0,175.33,175.31,4.04964668]
[1641157748510,5.4466428,175.33,175.3,4.04964668]
[1641157748910,2.4466428,175.33,175.3,4.04964668]
[1641157749112,3.0,175.34,175.3,4.04964668]
[1641157749312,2.44583314,175.32,175.28,4.04964668]
[1641157749911,12.13939249,175.33,175.29,4.04964668]
[1641157749912,4.04699588,175.3,175.29,4.04964668]
[1641157750712,4.04681828,175.31,175.26,12.14687196]
[1641157752212,2.44555376,175.33,175.3,4.04677963]
[1641157752814,4.04673702,175.31,175.3,4.04677963]
[1641157753412,6.72,175.33,175.3,4.04677963]
[1641157753613,9.16550732,175.33,175.3,4.04677963]
[1641157754214,4.04674303,175.31,175.3,4.04677963]
[1641157754615,30.0483,175.34,175.3,4.04677963]
[1641157755518,4.04681188,175.31,175.3,4.04677963]
[1641157756019,30.0483,175.34,175.3,4.04677963]
[1641157757420,30.0483,175.34,175.31,4.04677963]
[1641157757421,2.44705827,175.33,175.31,4.04677963]
[1641157758121,2.44707247,175.36,175.31,4.04677963]
[1641157758921,14.59528998,175.36,175.31,4.04677963]
[1641157759620,12.14821751,175.36,175.32,4.04677963]
[1641157761825,2.44707247,175.37,175.32,4.04677963]
[1641157762926,12.14762148,175.36,175.32,4.04677963]
[1641157764228,2.44707247,175.37,175.32,4.04677963]
[1641157764828,12.14762454,175.36,175.32,4.04677963]
[1641157765529,2.44707247,175.37,175.32,5.64803705]
[1641157766127,12.147414,175.36,175.32,5.64803705]
[1641157766828,12.147414,175.36,175.32,4.04677963]
[1641157767832,12.147414,175.36,175.31,4.04677963]
[1641157768331,14.59448647,175.36,175.31,4.04677963]
[1641157769030,12.147414,175.36,175.31,4.04677963]
[1641157769729,14.59448647,175.36,175.31,4.04677963]
[1641157769930,12.147414,175.35,175.31,4.04677963]
[1641157773831,11.67220286,175.38,175.31,4.04677963]
[1641157774532,12.14770213,175.35,175.31,4.04677963]
[1641157775635,11.67220286,175.38,175.31,4.04677963]
[1641157775934,3.0,175.37,175.31,4.04677963]
[1641157776134,11.67220286,175.38,175.31,4.04677963]
[1641157776536,12.14765788,175.35,175.31,4.04677963]
[1641157777537,11.67220286,175.38,175.31,4.04677963]